bitfinex-derivatives/quotes_SOLF0:USTF0_20240816
["timestamp","ask_amount","ask_price","bid_price","bid_amount"]
[1723813359071,0.04979102,139.45,139.4,43.0]
[1723813359368,9.6843,139.47,139.42,3.5852]
[1723813359561,0.04999287,139.44,139.41,0.0551717]
[1723813360560,0.04999287,139.44,139.42,3.5851]
[1723813361363,0.04999287,139.44,139.41,1.3697717]
[1723813361560,0.04999287,139.44,139.42,43.0]
[1723813361768,0.04999287,139.44,139.42,44.2555]
[1723813361969,0.04999287,139.44,139.43,3.5851]
[1723813362470,0.04999287,139.44,139.42,44.2555]
[1723813362667,6.08,139.51,139.45,43.0]
[1723813363059,3.583,139.52,139.45,43.0]
[1723813363260,69.15092227,139.54,139.45,43.0]
[1723813363465,3.5832,139.51,139.46,3.5843]
[1723813364067,3.6327394,139.51,139.48,0.04591982]
[1723813364268,0.0495394,139.51,139.48,0.04591982]
[1723813364675,0.0495394,139.51,139.5,3.5833]
[1723813366173,0.0495394,139.51,139.49,3.5835]
[1723813366761,0.0495394,139.51,139.5,3.5833]
[1723813367766,0.0495394,139.51,139.5,4.854]
[1723813367967,50.3866,139.6,139.5,4.854]
[1723813367968,3.5814,139.58,139.52,3.5826]
[1723813368374,3.582,139.56,139.5,1.2707]
[1723813368678,43.0,139.58,139.49,50.365]
[1723813368870,3.5822,139.55,139.49,50.365]
[1723813369265,43.0,139.58,139.51,0.05517298]
[1723813369577,50.3866,139.6,139.51,0.05517298]
[1723813369872,50.3666,139.6,139.53,3.5824]
[1723813370064,50.3666,139.6,139.5,6.08]
[1723813370264,50.3666,139.6,139.55,0.0491039]
[1723813370578,7.3666,139.6,139.55,0.0491039]
[1723813372076,3.5818,139.56,139.55,0.0491039]
[1723813372579,7.3666,139.6,139.55,0.0491039]
[1723813373088,3.5814,139.58,139.55,0.0491039]
[1723813373781,7.3666,139.6,139.55,0.0491039]
[1723813374181,3.5816,139.57,139.55,0.0491039]
[1723813374379,54.01366692,139.6,139.55,0.0491039]
[1723813374571,43.0,139.58,139.55,0.0491039]
[1723813374975,43.0,139.58,139.48,1.3422]
[1723813375378,3.5823,139.55,139.48,1.3422]
[1723813375882,43.0,139.58,139.48,1.3422]
[1723813376076,3.5818,139.56,139.49,43.0]
[1723813376281,0.0491039,139.53,139.5,0.04830506]
[1723813376685,0.0491039,139.53,139.52,3.5828]
[1723813378480,78.09971525,139.66,139.51,43.0]
[1723813378680,43.0,139.63,139.48,2.6858]
[1723813378883,43.0,139.63,139.52,43.0]
[1723813379080,3.5812,139.59,139.53,3.5825]
[1723813379277,43.0,139.58,139.48,8.7658]
[1723813379474,3.5828,139.52,139.48,2.6858]
[1723813379783,3.52691502,139.54,139.52,0.04929764]
[1723813379972,43.0,139.54,139.43,43.0]
[1723813380381,43.0,139.52,139.41,2.6319]
[1723813380787,3.5843,139.47,139.41,2.6319]
[1723813381272,3.52870588,139.46,139.43,0.05455716]
[1723813381477,0.04929764,139.45,139.43,0.05455716]
[1723813382083,3.5841,139.47,139.43,0.05455716]
[1723813382084,9.6641,139.47,139.43,0.05455716]
[1723813382388,0.04929764,139.45,139.43,0.05455716]
[1723813385890,0.04929764,139.45,139.44,3.5849]
[1723813386098,0.04929764,139.45,139.44,46.5849]
[1723813386289,0.04929764,139.45,139.44,49.2812]
[1723813386593,3.63175346,139.53,139.44,45.6963]
[1723813386788,4.71959248,139.52,139.44,45.6963]
[1723813386994,3.53712427,139.53,139.44,45.6963]
[1723813387185,6.08,139.54,139.46,43.0]
[1723813387497,6.08,139.55,139.48,43.0]
[1723813387690,44.1238,139.59,139.48,43.0]
[1723813387691,4.72002028,139.54,139.48,43.0]
[1723813387890,6.08,139.56,139.49,0.05103936]
[1723813388196,4.72046919,139.55,139.51,3.5829]
[1723813388389,6.08,139.56,139.5,43.0]
[1723813388597,4.72061352,139.55,139.5,43.0]
[1723813388789,1.3298,139.59,139.52,3.5826]
[1723813388790,3.5813,139.58,139.52,3.5826]
[1723813389097,4.72154216,139.57,139.52,43.04627306]
[1723813389300,9.6608,139.6,139.52,46.62635231]
[1723813389503,4.7224019,139.59,139.52,44.42857306]
[1723813389804,4.72228888,139.58,139.52,0.04627306]
[1723813390101,4.72228888,139.57,139.52,0.04627306]
[1723813390300,4.72228888,139.56,139.52,0.04627306]
[1723813390503,6.08,139.6,139.52,0.04627306]
[1723813390705,4.72363812,139.59,139.52,0.04627306]
[1723813390900,4.72363812,139.58,139.52,0.04627306]
[1723813391098,4.72363812,139.59,139.52,0.04627306]
[1723813391299,8.30498349,139.58,139.53,3.5825]
[1723813391626,3.5813,139.58,139.53,3.5825]
[1723813391803,6.08,139.6,139.51,46.55607832]
[1723813392115,6.08,139.6,139.54,0.054492]
[1723813392307,6.08,139.6,139.56,3.5818]
[1723813392799,6.08,139.6,139.54,0.054492]
[1723813393402,6.08,139.6,139.57,3.5813]
[1723813393597,3.5804,139.62,139.54,0.054492]
[1723813393598,10.89166706,139.64,139.54,0.054492]
[1723813393904,4.72420911,139.63,139.53,43.0]
[1723813394100,2.65010911,139.62,139.58,43.0]
[1723813394417,3.51391444,139.69,139.59,6.08]
[1723813394594,3.58,139.63,139.57,3.5815]
[1723813394799,43.0,139.66,139.58,0.05240415]
[1723813395400,43.0,139.64,139.58,0.05240415]
[1723813395602,3.56887278,139.63,139.58,0.05240415]
[1723813395806,3.5804,139.62,139.58,0.05240415]
[1723813396009,3.5804,139.62,139.57,3.5815]
[1723813396800,7.4576,139.65,139.59,0.05020112]
[1723813397205,11.0372,139.65,139.6,3.5805]
[1723813397405,7.4576,139.65,139.59,0.05020112]
[1723813398210,6.08,139.65,139.59,43.05020112]
[1723813398410,2.6676,139.69,139.59,46.6606099]
[1723813398714,66.92186511,139.7,139.61,43.0]
[1723813398906,70.50016511,139.7,139.65,3.5793]
[1723813399107,70.50016511,139.7,139.63,43.04889421]
[1723813399406,66.92186511,139.7,139.63,43.04889421]
[1723813399611,70.46016511,139.7,139.65,3.5794]
[1723813399801,66.88186511,139.7,139.65,3.63392802]
[1723813400209,3.578,139.71,139.67,3.5789]
[1723813400403,43.0,139.73,139.63,43.0]
[1723813400610,3.5789,139.68,139.63,3.5798]
[1723813400805,3.50474889,139.7,139.59,52.58152728]
[1723813401000,43.0,139.71,139.64,0.05195137]
[1723813401202,3.5788,139.68,139.64,0.05195137]
[1723813403009,46.62691016,139.67,139.64,0.05195137]
[1723813403241,43.0,139.67,139.57,43.0]
[1723813403508,3.5801,139.63,139.57,43.0]
[1723813403809,7.3822,139.66,139.59,3.5808]
[1723813404010,6.08,139.66,139.57,43.0]
[1723813404206,6.08,139.66,139.59,43.0]
[1723813404402,0.04982411,139.63,139.59,43.0]
[1723813404605,0.04982411,139.63,139.6,0.04761991]
[1723813404803,0.04982411,139.63,139.62,3.5802]
[1723813407214,0.04982411,139.63,139.61,46.8886]
[1723813407215,9.6583,139.7,139.61,46.8886]
[1723813407511,6.08,139.7,139.63,43.0]
[1723813407809,6.08,139.7,139.65,3.5793]
[1723813408014,6.08,139.7,139.63,43.0]
[1723813408415,6.08,139.7,139.65,0.0542541]
[1723813409216,9.6582,139.7,139.65,0.0542541]
[1723813410513,3.5786,139.69,139.65,0.0542541]
[1723813410848,43.0,139.69,139.65,0.0542541]
[1723813411010,3.5792,139.66,139.65,0.0542541]
[1723813411225,43.0,139.67,139.55,43.0]
[1723813411714,2.5551,139.66,139.55,43.0]
[1723813412111,3.5801,139.63,139.58,3.5812]
[1723813412310,2.5551,139.66,139.58,3.5812]
[1723813412511,0.04618167,139.62,139.59,0.05465458]
[1723813412907,0.04618167,139.62,139.54,2.5879]
[1723813412908,0.04618167,139.62,139.52,6.08]
[1723813413116,43.04618167,139.62,139.52,43.0]
[1723813413307,9.6607,139.61,139.56,3.5816]
[1723813413510,6.08,139.61,139.56,3.5816]
[1723813413714,43.0,139.65,139.54,43.0]
[1723813413923,6.17983153,139.66,139.58,3.5811]
[1723813414108,43.0,139.63,139.52,43.0]
[1723813414316,3.581,139.6,139.58,0.04811368]
[1723813414514,6.08,139.59,139.58,0.04811368]
[1723813415117,0.04857825,139.61,139.58,0.04811368]
[1723813415319,6.08,139.6,139.58,0.04811368]
[1723813415509,6.12857825,139.61,139.58,3.62941368]
[1723813415708,0.04857825,139.61,139.58,0.04811368]
[1723813415914,0.04857825,139.61,139.59,3.5808]
[1723813416120,0.04857825,139.61,139.58,0.04811368]
[1723813419221,3.5808,139.6,139.58,0.04811368]
[1723813419419,0.04857825,139.61,139.58,0.04811368]
[1723813419814,0.04857825,139.61,139.58,3.62931368]
[1723813420217,0.04857825,139.61,139.58,0.04811368]
[1723813420711,0.04857825,139.61,139.58,3.62941368]
[1723813421123,0.04857825,139.61,139.58,0.04811368]
[1723813422119,0.04857825,139.61,139.59,3.5808]
[1723813423021,0.04857825,139.61,139.6,3.5808]
[1723813424223,7.3707,139.69,139.61,43.0]
[1723813424623,44.3445,139.74,139.64,43.0]
[1723813424819,6.08,139.72,139.64,43.0]
[1723813425024,3.578,139.71,139.64,43.0]
[1723813425223,0.04552422,139.69,139.66,3.62594654]
[1723813425525,0.04552422,139.69,139.66,0.04674654]
[1723813425830,0.04552422,139.69,139.67,43.0]
[1723813426224,0.04552422,139.69,139.66,0.04674654]
[1723813427426,6.08,139.78,139.67,43.0]
[1723813427633,6.08,139.78,139.69,43.0]
[1723813427924,3.5771,139.75,139.69,43.0]
[1723813428431,6.08,139.78,139.71,0.04544682]
[1723813428623,3.5768,139.76,139.71,3.62334682]
[1723813429427,3.5764,139.77,139.72,3.5776]
[1723813429635,3.5764,139.77,139.71,0.04544682]
[1723813429636,6.08,139.78,139.71,43.04544682]
[1723813430138,6.06,139.78,139.71,0.04544682]
[1723813430729,6.06,139.78,139.73,3.5774]
[1723813431434,6.06,139.78,139.69,43.0]
[1723813431826,6.06,139.78,139.74,0.04733597]
[1723813432134,3.5764,139.77,139.74,0.04733597]
[1723813432336,6.06,139.78,139.74,0.04733597]
[1723813433240,9.6363,139.78,139.74,0.04733597]
[1723813433438,6.06,139.78,139.74,0.04733597]
[1723813433832,1.2602,139.83,139.74,0.04733597]
[1723813434034,3.55967716,139.82,139.74,1.3464]
[1723813434233,7.3202,139.83,139.77,0.04882519]
[1723813434631,10.98646717,139.83,139.77,0.04882519]
[1723813434837,7.3202,139.83,139.77,0.04882519]
[1723813435340,6.06,139.83,139.77,43.04882519]
[1723813435533,233.58012301,139.94,139.77,43.04882519]
[1723813435534,6.06,139.87,139.77,43.04882519]
[1723813435736,3.5743,139.86,139.78,1.3043]
[1723813436139,3.5743,139.86,139.81,0.04691096]
[1723813436338,3.5743,139.86,139.82,3.5751]
[1723813436642,3.5743,139.86,139.81,0.04691096]
[1723813436847,3.5743,139.86,139.82,3.5751]
[1723813437140,43.0,139.84,139.81,0.04691096]
[1723813437341,43.0,139.82,139.75,3.5769]
[1723813437539,3.5758,139.8,139.75,3.5769]
[1723813437737,3.62129748,139.81,139.71,43.0]
[1723813437945,43.0,139.82,139.74,3.5771]
[1723813438136,3.5759,139.79,139.71,43.0]
[1723813438340,50.3423,139.83,139.73,43.0]
[1723813438539,3.64856885,139.82,139.73,43.0]
[1723813438739,0.04646934,139.76,139.74,0.0498139]
[1723813439035,0.04646934,139.76,139.75,3.5769]
[1723813439232,43.0,139.81,139.74,0.0498139]
[1723813439741,3.5761,139.79,139.74,0.0498139]
[1723813440245,43.0,139.81,139.74,3.6269139]
[1723813440246,0.04938071,139.77,139.74,3.6269139]
[1723813440443,0.04938071,139.77,139.74,0.0498139]
[1723813442639,0.04938071,139.77,139.75,3.5769]
[1723813442835,0.04938071,139.77,139.74,0.0498139]
[1723813443036,0.04938071,139.77,139.75,43.0]
[1723813443241,0.04938071,139.77,139.76,3.5767]
[1723813444240,0.04938071,139.77,139.75,44.2925]
[1723813444448,0.04938071,139.77,139.75,6.06]
[1723813445248,0.04938071,139.77,139.76,3.5767]
[1723813445847,1.3059,139.88,139.79,43.0]
[1723813446044,4.81102817,139.88,139.79,43.0]
[1723813446248,1.3059,139.88,139.8,6.06]
[1723813447049,47.92330097,139.88,139.8,6.06]
[1723813447244,1.2475,139.87,139.8,6.06]
[1723813447445,3.49261369,139.86,139.8,6.06]
[1723813447755,4.82413951,139.87,139.83,0.05282747]
[1723813448044,4.82413951,139.87,139.72,43.0]
[1723813448045,3.5756,139.8,139.72,43.0]
[1723813448250,49.06,139.84,139.72,43.0]
[1723813448548,0.05284706,139.83,139.72,43.0]
[1723813448949,3.5751,139.82,139.74,43.0]
[1723813449341,43.0,139.86,139.76,43.0]
[1723813449551,4.87250793,139.87,139.76,46.6422074]
[1723813449742,1.2475,139.87,139.77,1.2708]
[1723813449942,0.04987859,139.82,139.8,3.5756]
[1723813450146,0.04987859,139.82,139.78,1.3035]
[1723813450341,0.04987859,139.82,139.78,44.3035]
[1723813450553,4.8214,139.87,139.81,3.62829433]
[1723813450952,3.5736,139.88,139.81,0.05309433]
[1723813451252,0.0509893,139.85,139.81,0.05309433]
[1723813451656,0.0509893,139.85,139.81,3.62829433]
[1723813451954,0.0509893,139.85,139.81,3.5752]
[1723813452151,0.0509893,139.85,139.82,0.04603902]
[1723813452348,43.0509893,139.85,139.82,0.04603902]
[1723813452552,11.00119903,139.84,139.82,0.04603902]
[1723813452752,11.00119903,139.84,139.72,6.06]
[1723813452753,43.0,139.83,139.72,49.06]
[1723813453159,3.575,139.83,139.78,3.5761]
[1723813453459,6.06,139.84,139.77,43.0]
[1723813453863,6.06,139.84,139.79,3.5756]
[1723813454152,0.05155466,139.82,139.79,0.05231316]
[1723813458165,0.05155466,139.82,139.79,3.62811316]
[1723813458553,0.05155466,139.82,139.79,0.05231316]
[1723813459759,3.58665466,139.82,139.79,0.05231316]
[1723813460168,0.01155466,139.82,139.79,0.05231316]
[1723813461865,3.5756,139.8,139.79,0.05231316]
[1723813462664,7.21282934,139.8,139.79,0.05231316]
[1723813464162,3.63722934,139.8,139.73,1.3142]
[1723813464459,57.54,139.79,139.71,1.2614]
[1723813464659,3.5777,139.73,139.67,1.3585]
[1723813464855,51.48,139.77,139.67,1.3585]
[1723813465060,6.06,139.76,139.67,1.3585]
[1723813465564,6.06,139.76,139.68,3.5786]
[1723813465761,0.05280295,139.73,139.7,0.05260757]
[1723813466959,3.5779,139.71,139.7,0.05260757]
[1723813467165,51.53280295,139.73,139.61,51.48]
[1723813467468,3.5789,139.68,139.63,3.5798]
[1723813468167,3.5785,139.69,139.61,51.48]
[1723813468364,6.06,139.71,139.63,51.48]
[1723813468567,0.05211773,139.67,139.66,3.5792]
[1723813468770,0.05211773,139.67,139.64,0.04650157]
[1723813469065,0.05211773,139.67,139.66,3.5792]
[1723813469264,51.48,139.75,139.63,54.99290429]
[1723813469470,9.60904234,139.74,139.65,51.48]
[1723813469666,3.5776,139.73,139.68,3.5785]
[1723813470563,0.04946141,139.72,139.68,3.5785]
[1723813470768,0.04946141,139.72,139.69,3.5784]
[1723813470964,0.04946141,139.72,139.69,3.63166223]
[1723813471170,0.04946141,139.72,139.69,0.05326223]
[1723813471171,3.5779,139.71,139.69,0.05326223]
[1723813471366,0.04946141,139.72,139.69,0.05326223]
[1723813471771,3.5782,139.7,139.69,0.05326223]
[1723813471965,0.04946141,139.72,139.62,3.5801]
[1723813472162,3.5788,139.68,139.6,3.9156]
[1723813472363,9.69634613,139.68,139.63,3.5798]
[1723813472570,6.06,139.68,139.6,3.9156]
[1723813472963,6.06,139.68,139.62,3.58]
[1723813473165,9.55179395,139.68,139.62,3.58]
[1723813473566,0.04551748,139.65,139.63,0.04691252]
[1723813474672,55.0530151,139.75,139.63,0.04691252]
[1723813474872,9.6378,139.72,139.67,3.5788]
[1723813475093,6.06,139.72,139.65,51.48]
[1723813475472,6.06,139.72,139.67,51.48]
[1723813475778,7.3682,139.76,139.67,51.48]
[1723813475969,10.90265925,139.76,139.68,2.62]
[1723813476170,0.04888368,139.71,139.68,2.67331685]
[1723813476480,0.04888368,139.71,139.68,6.25201685]
[1723813476667,0.04888368,139.71,139.68,2.67331685]
[1723813477984,73.04306743,139.77,139.68,45.62331685]
[1723813478477,3.5767,139.76,139.71,3.5778]
[1723813478775,76.58980998,139.77,139.68,45.57]
[1723813479577,0.05005874,139.74,139.71,0.04677396]
[1723813480677,42.95,139.73,139.71,0.04677396]
[1723813480978,9.6377,139.72,139.71,0.04677396]
[1723813481171,6.06,139.72,139.63,4.84115354]
[1723813481371,42.95,139.71,139.63,1.2849]
[1723813481676,42.95,139.71,139.63,4.8647]
[1723813482073,3.5785,139.69,139.65,3.5793]
[1723813482472,0.04775105,139.68,139.66,0.04697183]
[1723813482673,0.04775105,139.68,139.66,3.62597183]
[1723813483373,0.04775105,139.68,139.66,0.04697183]
[1723813483978,0.04775105,139.68,139.66,3.62607183]
[1723813484776,0.04775105,139.68,139.67,3.579]
[1723813485486,0.04775105,139.68,139.66,0.04697183]
[1723813486379,3.579,139.67,139.66,0.04697183]
[1723813486574,0.04775105,139.68,139.66,0.04697183]
[1723813487576,0.04775105,139.68,139.67,3.579]
[1723813488383,0.04775105,139.68,139.66,3.62617183]
[1723813488777,0.04775105,139.68,139.66,0.04697183]
[1723813490475,51.51,139.74,139.38,3.24782742]
[1723813490476,113.84151649,139.67,139.38,3.24782742]
[1723813490673,113.84151649,139.67,139.36,10.7605]
[1723813490674,51.51,139.56,139.48,2.6973]
[1723813490882,61.09199019,139.56,139.48,2.6973]
[1723813491186,61.09199019,139.56,139.44,51.51]
[1723813491187,51.51,139.54,139.42,51.51]
[1723813491688,51.51,139.54,139.47,0.05004975]
[1723813491879,0.04714477,139.49,139.47,0.05004975]
[1723813492577,9.6431,139.51,139.47,0.05004975]
[1723813492777,3.52199019,139.56,139.47,0.05004975]
[1723813492778,55.03199019,139.56,139.47,0.05004975]
[1723813493085,0.0457085,139.49,139.47,0.05004975]
[1723813493276,3.5826,139.53,139.42,51.51]
[1723813493476,9.67478506,139.55,139.47,0.05025129]
[1723813493686,0.04748399,139.49,139.47,0.05025129]
[1723813493987,0.05343069,139.49,139.47,0.05025129]
[1723813494374,0.4004,139.59,139.47,51.56025129]
[1723813494579,9.6419,139.56,139.5,3.5831]
[1723813494777,9.6419,139.56,139.48,1.3752]
[1723813494981,9.6419,139.56,139.51,3.5829]
[1723813494982,6.06,139.56,139.51,3.5829]
[1723813495380,9.68804178,139.59,139.5,1.3074]
[1723813495585,0.05120396,139.55,139.52,0.05512152]
[1723813500809,6.11120396,139.55,139.52,0.05512152]
[1723813501385,3.5825,139.54,139.52,0.05512152]
[1723813502186,6.11120396,139.55,139.52,0.05512152]
[1723813502993,0.05120396,139.55,139.52,0.05512152]
[1723813504088,3.5825,139.53,139.52,0.05512152]
[1723813504296,0.05120396,139.55,139.52,0.05512152]
[1723813504693,51.51,139.53,139.41,51.51]
[1723813504887,6.06,139.52,139.42,1.3702]
[1723813505194,6.06,139.52,139.42,4.87316198]
[1723813505394,6.06,139.52,139.43,51.51]
[1723813505790,0.04813917,139.49,139.46,0.05380826]
[1723813506291,0.04813917,139.49,139.47,3.5839]
[1723813506787,0.04813917,139.49,139.46,0.05380826]
[1723813507487,0.04813917,139.49,139.47,3.5841]
[1723813507994,0.04813917,139.49,139.48,3.5838]
[1723813508383,6.06,139.55,139.47,1.3642]
[1723813508604,49.03,139.55,139.47,1.3642]
[1723813508794,42.97,139.55,139.47,1.3642]
[1723813509586,0.04932029,139.52,139.5,0.04876818]
[1723813511384,6.06,139.59,139.5,43.01876818]
[1723813511590,6.06,139.59,139.5,46.68488418]
[1723813511788,3.5813,139.58,139.5,42.97]
[1723813511991,3.5813,139.58,139.48,50.3747]
[1723813512392,3.5813,139.58,139.53,3.5824]
[1723813512801,0.0526052,139.54,139.53,3.5824]
[1723813513097,9.6411,139.59,139.54,3.5823]
[1723813513292,0.04866102,139.55,139.54,3.5823]
[1723813513498,6.06,139.59,139.56,3.5816]
[1723813513693,6.06,139.59,139.53,0.04537382]
[1723813513892,6.11255537,139.59,139.49,3.56687686]
[1723813514092,9.69375537,139.59,139.56,0.04606219]
[1723813514486,9.6412,139.59,139.5,46.58850802]
[1723813514690,9.69410116,139.59,139.56,0.04801016]
[1723813514890,9.68806864,139.59,139.54,3.5821]
[1723813515094,9.6412,139.59,139.56,0.04753654]
[1723813515289,0.04741611,139.58,139.56,0.04753654]
[1723813517398,0.04741611,139.58,139.56,3.62923654]
[1723813518495,0.04741611,139.58,139.56,0.04753654]
[1723813519999,0.04741611,139.58,139.57,3.5815]
[1723813520396,0.04741611,139.58,139.56,0.04753654]
[1723813520601,0.04741611,139.58,139.56,3.62923654]
[1723813524301,0.04741611,139.58,139.57,3.5815]
[1723813525502,0.04741611,139.58,139.56,0.04753654]
[1723813525503,0.04741611,139.58,139.56,3.62923654]
[1723813526099,0.04741611,139.58,139.56,0.04753654]
[1723813527498,3.5815,139.57,139.56,0.04753654]
[1723813528700,3.62881611,139.58,139.56,0.04753654]
[1723813529111,0.04741611,139.58,139.56,0.04753654]
[1723813531211,0.04741611,139.58,139.57,3.5815]
[1723813531597,0.04741611,139.58,139.56,0.04753654]
[1723813532601,0.04741611,139.58,139.56,3.62913654]
[1723813533002,0.04741611,139.58,139.57,3.5815]
[1723813534199,0.04741611,139.58,139.56,0.04753654]
[1723813534806,0.04741611,139.58,139.56,3.62933654]
[1723813536205,0.04741611,139.58,139.57,3.5815]
[1723813539709,0.04741611,139.58,139.56,0.04753654]
[1723813539710,0.04741611,139.58,139.56,3.62923654]
[1723813540105,0.04741611,139.58,139.56,0.04753654]
[1723813540305,0.04741611,139.58,139.57,3.5815]
[1723813541204,0.04741611,139.58,139.56,3.62923654]
[1723813541714,0.04741611,139.58,139.56,0.04753654]
[1723813542111,0.04741611,139.58,139.57,3.5815]
[1723813543708,0.04741611,139.58,139.56,0.04753654]
[1723813544516,34.42741611,139.58,139.56,0.04753654]
[1723813544711,7.22116708,139.57,139.56,0.04753654]
[1723813544908,34.42741611,139.58,139.48,1.3447]
[1723813545107,34.38,139.55,139.48,1.3447]
[1723813545308,34.38,139.57,139.48,4.91812621]
[1723813545613,34.38,139.57,139.49,34.38]
[1723813545917,3.5813,139.58,139.53,3.5824]
[1723813546221,46.52508828,139.61,139.52,0.0526439]
[1723813546413,0.0509071,139.57,139.52,0.0526439]
[1723813546623,0.0509071,139.57,139.53,0.05353524]
[1723813547018,0.0509071,139.57,139.54,3.5822]
[1723813547610,0.0509071,139.57,139.55,3.582]
[1723813547919,0.0509071,139.57,139.53,0.05353524]
[1723813548820,3.6326071,139.57,139.53,0.05353524]
[1723813549010,0.0509071,139.57,139.53,0.05353524]
[1723813550117,0.0509071,139.57,139.53,3.70600325]
[1723813550319,0.0509071,139.57,139.53,46.70600325]
[1723813550625,0.0509071,139.57,139.56,3.5818]
[1723813552222,43.453,139.67,139.55,1.3611]
[1723813552223,43.0,139.65,139.55,44.3611]
[1723813552419,4.77255533,139.64,139.55,44.3611]
[1723813552620,3.5799,139.64,139.58,3.581]
[1723813552819,4.77243565,139.63,139.58,3.581]
[1723813553023,46.55076187,139.65,139.58,3.581]
[1723813553212,4.77228603,139.64,139.58,3.581]
[1723813553412,0.0464817,139.62,139.59,0.05282178]
[1723813554015,0.0464817,139.62,139.59,3.63382178]
[1723813554225,0.0464817,139.62,139.59,0.05282178]
[1723813555123,0.0464817,139.62,139.6,3.5805]
[1723813555319,0.0464817,139.62,139.59,0.05282178]
[1723813555824,0.0464817,139.62,139.59,3.63372178]
[1723813556422,0.0464817,139.62,139.6,3.5807]
[1723813556818,0.0464817,139.62,139.59,0.05282178]
[1723813557822,0.0464817,139.62,139.61,3.5805]
[1723813558621,49.06,139.69,139.64,3.5795]
[1723813558622,6.06,139.69,139.64,3.5795]
[1723813558828,4.76996864,139.68,139.64,3.5795]
[1723813559027,6.06,139.69,139.63,3.62752785]
[1723813559028,4.7699312,139.67,139.63,3.62752785]
[1723813559223,3.5785,139.69,139.64,3.5796]
[1723813559426,4.77020947,139.68,139.62,43.0]
[1723813559628,49.06,139.72,139.62,43.0]
[1723813559629,6.06,139.72,139.62,43.0]
[1723813559824,4.77080001,139.71,139.63,1.2595]
[1723813560024,9.6377,139.72,139.63,4.78119746]
[1723813560220,0.04895601,139.66,139.64,0.05224916]
[1723813560926,43.0,139.69,139.64,0.05224916]
[1723813561128,4.7702104,139.68,139.64,0.05224916]
[1723813561341,0.05229153,139.66,139.64,0.05224916]
[1723813562529,0.05229153,139.66,139.65,3.5795]
[1723813563130,0.05229153,139.66,139.64,0.05224916]
[1723813565321,0.05229153,139.66,139.65,3.5795]
[1723813565522,0.05229153,139.66,139.64,0.05224916]
[1723813567040,0.05229153,139.66,139.64,34.41224916]
[1723813567328,0.05229153,139.66,139.65,3.5795]
[1723813567926,3.5772,139.74,139.69,3.5784]
[1723813568135,4.7731533,139.73,139.69,3.5784]
[1723813568325,6.04,139.76,139.68,34.36]
[1723813568730,6.04,139.76,139.71,34.36]
[1723813569051,66.98306743,139.77,139.72,3.5775]
[1723813569240,4.77363112,139.76,139.7,34.36]
[1723813569439,0.03154283,139.75,139.72,0.04638487]
[1723813570137,0.03154283,139.75,139.74,3.5772]
[1723813570336,0.03154283,139.75,139.74,37.9372]
[1723813570730,34.36,139.84,139.74,34.36]
[1723813570936,34.36,139.84,139.75,34.36]
[1723813571134,2.5999,139.85,139.75,34.36]
[1723813571337,2.5999,139.85,139.73,6.04]
[1723813571338,2.5999,139.85,139.77,34.36]
[1723813571536,2.5999,139.85,139.78,6.04]
[1723813571731,1.3298,139.85,139.8,3.5754]
[1723813571932,34.36,139.86,139.78,9.65205474]
[1723813572141,34.36,139.88,139.78,9.65205474]
[1723813572437,34.36,139.86,139.8,0.04531022]
[1723813572641,34.36,139.84,139.8,0.04531022]
[1723813573043,34.36,139.82,139.8,0.04531022]
[1723813573348,34.36,139.81,139.72,6.04]
[1723813573635,34.36,139.76,139.67,35.7237]
[1723813573842,4.99796878,139.81,139.68,6.04]
[1723813573843,42.95,139.77,139.68,6.04]
[1723813574140,42.95,139.77,139.72,3.5775]
[1723813574337,42.95,139.77,139.68,42.95]
[1723813574534,42.95,139.77,139.69,6.04]
[1723813574938,0.04531022,139.74,139.71,0.0457504]
[1723813575244,0.04531022,139.74,139.71,42.9957504]
[1723813575446,42.95,139.82,139.73,42.95]
[1723813576344,48.99,139.84,139.73,42.95]